[Event "FRA-chTW Top 12 2019"]
[Site "Vandoeuvre"]
[Date "2019.05.02"]
[Round "1.7"]
[White "Leconte, Maria"]
[Black "Aggoune, Liza"]
[Result "1-0"]
[ECO "C02"]
[WhiteElo "2246"]
[BlackElo "1769"]
[Annotator "NA"]
[PlyCount "57"]
[EventDate "2019.05.02"]
[EventType "team-tourn"]
[EventCountry "FRA"]
[SourceTitle "playchess.com"]
[Source "ChessBase"]
[SourceQuality "1"]
[TimeControl "40/5400+30:1800+30"]

1. e4 {[%emt 0:00:00]} c5 {[%emt 0:00:00]} 2. c3 {[%emt 0:00:00]} e6 {[%emt 0:01:03]} 3. d4 {[%emt 0:00:09]} d5 {[%emt 0:00:43]} 4. e5 {[%emt 0:01:48]} Nc6 {[%emt 0:01:53]} 5. Nf3 {[%emt 0:01:52]} Bd7 {[%emt 0:02:42]} 6. Be2 {[%emt 0:01:21]} cxd4 {[%emt 0:05:45]} 7. cxd4 {[%emt 0:00:09]} Qb6 {[%emt 0:03:08]} 8. O-O {[%emt 0:04:44]} Nge7 {[%emt 0:06:22]} 9. Nc3 {[%emt 0:12:43]} Nf5 {[%emt 0:06:25]} 10. Na4 {[%emt 0:01:56]} Qc7 {[%emt 0:02:18]} 11. g4 {[%emt 0:06:33]} Nfe7 {[%emt 0:06:24]} 12. Be3 {[%emt 0:06:05]} Ng6 {[%emt 0:04:39]} 13. Rc1 {[%emt 0:04:46]} Be7 {[%emt 0:04:23]} 14. Nc5 {[%emt 0:00:21]} O-O {[%emt 0:20:24]} 15. b4 {[%emt 0:02:14]} Bxc5 {[%emt 0:07:24]} 16. Rxc5 {[%emt 0:01:23]} a6 {[%emt 0:03:07]} 17. h4 {[%emt 0:02:59]} Qb6 {[%emt 0:05:27]} 18. h5 {[%emt 0:01:04]} Nge7 {[%emt 0:00:22]} 19. a3 {[%emt 0:00:26]} f6 {[%emt 0:01:06]} 20. Bd3 {[%emt 0:07:21]} Be8 {[%emt 0:04:46]} 21. exf6 {[%emt 0:04:37]} Rxf6 {[%emt 0:02:30]} 22. Bb1 {[%emt 0:08:48]} h6 {[%emt 0:05:53]} 23. Ne5 {[%emt 0:01:20]} Qd8 {[%emt 0:01:09]} 24. Qd3 {[%emt 0:01:37]} Kf8 {[%emt 0:02:43]} 25. Rcc1 {[%emt 0:08:28]} Qd6 {[%emt 0:00:28]} 26. f4 {[%emt 0:00:31]} g6 {[%emt 0:01:02]} 27. Bf2 {[%emt 0:05:59]} Rxf4 {[%emt 0:00:44]} 28. Bg3 {[%emt 0:00:20]} Nxe5 {[%emt 0:00:27]} 29. Rxf4+ {[%emt 0:00:46]} 1-0

[Event "FRA-chTW Top 12 2019"]
[Site "Vandoeuvre"]
[Date "2019.05.02"]
[Round "1.7"]
[White "Nicolas, Gabrielle"]
[Black "Steil-Antoni, Fiona"]
[Result "0-1"]
[ECO "A53"]
[WhiteElo "1733"]
[BlackElo "2156"]
[Annotator "NA"]
[PlyCount "48"]
[EventDate "2019.05.02"]
[EventType "team-tourn"]
[EventCountry "FRA"]
[SourceTitle "playchess.com"]
[Source "ChessBase"]
[SourceQuality "1"]
[TimeControl "40/5400+30:1800+30"]

1. d4 {[%emt 0:00:00]} d6 {[%emt 0:00:00]} 2. Nf3 {[%emt 0:00:10]} Bg4 {[%emt 0:00:00]} 3. e3 {[%emt 0:01:44]} Nd7 {[%emt 0:00:16]} 4. c4 {[%emt 0:01:42]} e5 {[%emt 0:00:24]} 5. Nc3 {[%emt 0:02:43]} Ngf6 {[%emt 0:01:14]} 6. Be2 {[%emt 0:01:39]} Be7 {[%emt 0:00:00]} 7. O-O {[%emt 0:04:34]} O-O {[%emt 0:01:45]} 8. b4 {[%emt 0:06:14]} c6 {[%emt 0:01:17]} 9. Qb3 {[%emt 0:08:43]} e4 {[%emt 0:03:08]} 10. Nd2 {[%emt 0:03:01]} Bxe2 {[%emt 0:00:35]} 11. Nxe2 {[%emt 0:00:16]} d5 {[%emt 0:00:37]} 12. f3 {[%emt 0:11:18]} exf3 {[%emt 0:02:34]} 13. Nxf3 {[%emt 0:01:27]} dxc4 {[%emt 0:01:46]} 14. Qxc4 {[%emt 0:02:16]} Nb6 {[%emt 0:00:53]} 15. Qb3 {[%emt 0:03:50]} Nbd5 {[%emt 0:00:42]} 16. a3 {[%emt 0:02:40]} Bd6 {[%emt 0:00:50]} 17. Bd2 {[%emt 0:07:17]} Qe7 {[%emt 0:02:41]} 18. Rae1 {[%emt 0:09:00]} h6 {[%emt 0:05:23]} 19. Nc3 {[%emt 0:04:21]} Nxc3 {[%emt 0:01:10]} 20. Bxc3 {[%emt 0:02:19]} Rae8 {[%emt 0:01:49]} 21. Bb2 {[%emt 0:04:53]} Qe4 {[%emt 0:02:01]} 22. h3 {[%emt 0:04:59]} Qg6 {[%emt 0:04:30]} 23. Qd1 {[%emt 0:06:43]} Re6 {[%emt 0:04:57]} 24. Ne5 {[%emt 0:04:22]} Bxe5 {[%emt 0:06:35]} 0-1

[Event "FRA-chTW Top 12 2019"]
[Site "Vandoeuvre"]
[Date "2019.05.02"]
[Round "1.10"]
[White "L'Ami, Alina"]
[Black "Gospodaru, Teodora"]
[Result "*"]
[ECO "A53"]
[WhiteElo "2286"]
[BlackElo "1434"]
[Annotator "NA"]
[PlyCount "39"]
[EventDate "2019.05.02"]
[EventType "team-tourn"]
[EventCountry "FRA"]
[SourceTitle "playchess.com"]
[Source "ChessBase"]
[SourceQuality "1"]
[TimeControl "40/5400+30:1800+30"]

1. d4 {[%emt 0:00:00]} Nf6 {[%emt 0:00:00]} 2. c4 {[%emt 0:00:00]} d6 {[%emt 0:00:00]} 3. Nc3 {[%emt 0:00:55]} e5 {[%emt 0:00:32]} 4. dxe5 {[%emt 0:00:44]} dxe5 {[%emt 0:00:08]} 5. Qxd8+ {[%emt 0:00:29]} Kxd8 {[%emt 0:00:09]} 6. Bg5 {[%emt 0:00:20]} Be6 {[%emt 0:00:09]} 7. O-O-O+ {[%emt 0:11:50]} Kc8 {[%emt 0:00:12]} 8. Nf3 {[%emt 0:08:27]} Bc5 {[%emt 0:01:03]} 9. e3 {[%emt 0:01:48]} Nbd7 {[%emt 0:01:02]} 10. Bh4 {[%emt 0:10:38]} Bb4 {[%emt 0:08:11]} 11. Ng5 {[%emt 0:19:53]} Bxc3 {[%emt 0:06:49]} 12. bxc3 {[%emt 0:03:20]} Bg4 {[%emt 0:01:33]} 13. f3 {[%emt 0:04:56]} Bh5 {[%emt 0:00:11]} 14. Bd3 {[%emt 0:03:10]} c6 {[%emt 0:24:13]} 15. Ne4 {[%emt 0:07:02]} Nxe4 {[%emt 0:01:11]} 16. Bxe4 {[%emt 0:00:05]} Bg6 {[%emt 0:03:18]} 17. Bxg6 {[%emt 0:03:59]} hxg6 {[%emt 0:01:43]} 18. Bg3 {[%emt 0:00:04]} Kc7 {[%emt 0:48:36]} 19. Rd2 {[%emt 0:02:28]} Rae8 {[%emt 0:01:36]} 20. Rhd1 {[%emt 0:03:19]} *

[Event "FRA-chTW Top 12 2019"]
[Site "Vandoeuvre"]
[Date "2019.05.02"]
[Round "1.10"]
[White "Bensdorp-De Labaca, Marlies"]
[Black "Le Du, Maelle"]
[Result "1-0"]
[ECO "D55"]
[WhiteElo "2229"]
[BlackElo "1673"]
[Annotator "NA"]
[PlyCount "143"]
[EventDate "2019.05.02"]
[EventType "team-tourn"]
[EventCountry "FRA"]
[SourceTitle "playchess.com"]
[Source "ChessBase"]
[SourceQuality "1"]
[TimeControl "40/5400+30:1800+30"]

1. d4 {[%emt 0:00:00]} d5 {[%emt 0:00:00]} 2. c4 {[%emt 0:00:00]} e6 {[%emt 0:00:00]} 3. Nc3 {[%emt 0:00:00]} Nf6 {[%emt 0:00:00]} 4. Bg5 {[%emt 0:00:00]} Be7 {[%emt 0:00:42]} 5. e3 {[%emt 0:00:00]} O-O {[%emt 0:00:57]} 6. Qc2 {[%emt 0:00:00]} h6 {[%emt 0:05:20]} 7. Bh4 {[%emt 0:00:44]} b6 {[%emt 0:00:52]} 8. Nf3 {[%emt 0:00:51]} Bb7 {[%emt 0:01:56]} 9. Bd3 {[%emt 0:01:31]} Nbd7 {[%emt 0:03:59]} 10. cxd5 {[%emt 0:02:20]} exd5 {[%emt 0:05:33]} 11. O-O {[%emt 0:00:44]} c5 {[%emt 0:07:20]} 12. Rac1 {[%emt 0:03:00]} cxd4 {[%emt 0:18:00]} 13. Nxd4 {[%emt 0:02:34]} Ne5 {[%emt 0:05:10]} 14. Be2 {[%emt 0:00:54]} Ne4 {[%emt 0:10:41]} 15. Bxe7 {[%emt 0:02:48]} Qxe7 {[%emt 0:00:20]} 16. Nxe4 {[%emt 0:06:03]} dxe4 {[%emt 0:01:07]} 17. Qc7 {[%emt 0:00:55]} Qxc7 {[%emt 0:03:22]} 18. Rxc7 {[%emt 0:00:06]} Bd5 {[%emt 0:00:45]} 19. Rfc1 {[%emt 0:07:07]} Nd3 {[%emt 0:05:11]} 20. Bxd3 {[%emt 0:11:09]} exd3 {[%emt 0:02:55]} 21. R7c3 {[%emt 0:10:22]} Be4 {[%emt 0:11:45]} 22. f3 {[%emt 0:00:50]} Bg6 {[%emt 0:00:26]} 23. e4 {[%emt 0:01:35]} Rad8 {[%emt 0:03:43]} 24. Nc6 {[%emt 0:15:22]} Rd7 {[%emt 0:04:33]} 25. Rd1 {[%emt 0:02:14]} Kh7 {[%emt 0:03:48]} 26. Rdxd3 {[%emt 0:01:24]} Rxd3 {[%emt 0:00:31]} 27. Rxd3 {[%emt 0:00:05]} Rc8 {[%emt 0:00:11]} 28. Rc3 {[%emt 0:00:25]} Rc7 {[%emt 0:00:30]} 29. Kf2 {[%emt 0:00:29]} f6 {[%emt 0:00:22]} 30. Ke3 {[%emt 0:00:44]} Rd7 {[%emt 0:00:15]} 31. b4 {[%emt 0:03:11]} Rd1 {[%emt 0:01:48]} 32. Nxa7 {[%emt 0:01:48]} Rg1 {[%emt 0:00:19]} 33. Rc2 {[%emt 0:00:23]} Rb1 {[%emt 0:00:05]} 34. a3 {[%emt 0:08:12]} Rb3+ {[%emt 0:00:07]} 35. Kd4 {[%emt 0:00:05]} Rxa3 {[%emt 0:00:13]} 36. Nc8 {[%emt 0:03:30]} Rb3 {[%emt 0:00:22]} 37. Kc4 {[%emt 0:00:26]} Bf7+ {[%emt 0:00:31]} 38. Kb5 {[%emt 0:00:10]} Be8+ {[%emt 0:00:28]} 39. Kxb6 {[%emt 0:00:17]} Rxb4+ {[%emt 0:00:08]} 40. Kc5 {[%emt 0:01:05]} Rb1 {[%emt 0:01:13]} 41. Nd6 {[%emt 0:30:23]} Bd7 {[%emt 0:30:51]} 42. f4 {[%emt 0:01:08]} Re1 {[%emt 0:01:00]} 43. Rd2 {[%emt 0:01:04]} Ba4 {[%emt 0:01:15]} 44. Kd4 {[%emt 0:00:29]} Rf1 {[%emt 0:01:00]} 45. g3 {[%emt 0:00:13]} Bc6 {[%emt 0:00:23]} 46. e5 {[%emt 0:01:50]} fxe5+ {[%emt 0:00:41]} 47. fxe5 {[%emt 0:00:11]} Re1 {[%emt 0:00:20]} 48. Rc2 {[%emt 0:00:27]} Ba4 {[%emt 0:00:30]} 49. Rb2 {[%emt 0:01:19]} Rd1+ {[%emt 0:00:40]} 50. Ke3 {[%emt 0:00:47]} Kg6 {[%emt 0:00:33]} 51. Rb4 {[%emt 0:00:33]} Bd7 {[%emt 0:00:21]} 52. Rb7 {[%emt 0:00:05]} Bc6 {[%emt 0:00:21]} 53. Rc7 {[%emt 0:00:39]} Bd5 {[%emt 0:00:09]} 54. Ne8 {[%emt 0:02:30]} Bf7 {[%emt 0:00:36]} 55. Rc6+ {[%emt 0:00:15]} Kh7 {[%emt 0:00:49]} 56. Nc7 {[%emt 0:00:48]} Re1+ {[%emt 0:00:23]} 57. Kd4 {[%emt 0:00:34]} Rd1+ {[%emt 0:00:32]} 58. Kc5 {[%emt 0:00:26]} Rc1+ {[%emt 0:01:02]} 59. Kd6 {[%emt 0:00:05]} Rxc6+ {[%emt 0:00:05]} 60. Kxc6 {[%emt 0:00:04]} Kg8 {[%emt 0:00:41]} 61. e6 {[%emt 0:00:07]} Bg6 {[%emt 0:00:11]} 62. e7 {[%emt 0:00:11]} Be4+ {[%emt 0:01:31]} 63. Kd6 {[%emt 0:00:22]} Bg6 {[%emt 0:00:09]} 64. Ke5 {[%emt 0:00:21]} Bh5 {[%emt 0:00:20]} 65. e8=Q+ {[%emt 0:00:55]} Bxe8 {[%emt 0:00:08]} 66. Nxe8 {[%emt 0:00:04]} Kf7 {[%emt 0:00:03]} 67. Nd6+ {[%emt 0:00:08]} Kg6 {[%emt 0:00:07]} 68. Ne4 {[%emt 0:00:16]} Kh5 {[%emt 0:00:15]} 69. Kf5 {[%emt 0:00:34]} g6+ {[%emt 0:00:16]} 70. Kf4 {[%emt 0:00:02]} g5+ {[%emt 0:00:07]} 71. Kf5 {[%emt 0:00:07]} g4 {[%emt 0:00:09]} 72. Nf6# {[%emt 0:15:40]} 1-0

[Event "FRA-chTW Top 12 2019"]
[Site "Vandoeuvre"]
[Date "2019.05.02"]
[Round "1.11"]
[White "L'Ami, Alina"]
[Black "Gospodaru, Teodora"]
[Result "1-0"]
[ECO "E54"]
[WhiteElo "2286"]
[BlackElo "1434"]
[Annotator "NA"]
[PlyCount "77"]
[EventDate "2019.05.02"]
[EventType "team-tourn"]
[EventCountry "FRA"]
[SourceTitle "playchess.com"]
[Source "ChessBase"]
[SourceQuality "1"]
[TimeControl "40/5400+30:1800+30"]

1. d4 {[%emt 0:00:00]} Nf6 {[%emt 0:00:00]} 2. c4 {[%emt 0:00:00]} e6 {[%emt 0:00:00]} 3. Nc3 {[%emt 0:00:00]} Bb4 {[%emt 0:00:00]} 4. e3 {[%emt 0:00:10]} O-O {[%emt 0:00:10]} 5. Bd3 {[%emt 0:01:11]} d5 {[%emt 0:00:14]} 6. Nf3 {[%emt 0:00:51]} c5 {[%emt 0:00:50]} 7. O-O {[%emt 0:00:32]} cxd4 {[%emt 0:02:38]} 8. exd4 {[%emt 0:00:11]} b6 {[%emt 0:02:43]} 9. Bg5 {[%emt 0:02:30]} dxc4 {[%emt 0:04:50]} 10. Be4 {[%emt 0:03:09]} Nc6 {[%emt 0:07:02]} 11. Bxc6 {[%emt 0:00:14]} Rb8 {[%emt 0:00:04]} 12. Ne5 {[%emt 0:07:00]} Be7 {[%emt 0:04:02]} 13. Bf3 {[%emt 0:02:29]} Bd7 {[%emt 0:01:41]} 14. Nxc4 {[%emt 0:01:19]} b5 {[%emt 0:01:50]} 15. Ne5 {[%emt 0:00:13]} b4 {[%emt 0:00:19]} 16. Nxd7 {[%emt 0:00:44]} Qxd7 {[%emt 0:00:30]} 17. Ne2 {[%emt 0:01:36]} Rfd8 {[%emt 0:00:28]} 18. Rc1 {[%emt 0:00:31]} Nd5 {[%emt 0:00:44]} 19. Bxe7 {[%emt 0:00:23]} Nxe7 {[%emt 0:00:24]} 20. Qd2 {[%emt 0:00:28]} Nf5 {[%emt 0:00:37]} 21. Rfd1 {[%emt 0:00:46]} Rb6 {[%emt 0:02:12]} 22. Be4 {[%emt 0:00:40]} Ne7 {[%emt 0:02:33]} 23. Qc2 {[%emt 0:03:33]} f5 {[%emt 0:01:51]} 24. Bf3 {[%emt 0:00:10]} Rd6 {[%emt 0:05:11]} 25. Qb3 {[%emt 0:01:47]} a5 {[%emt 0:02:08]} 26. Rc5 {[%emt 0:00:54]} g5 {[%emt 0:02:42]} 27. g3 {[%emt 0:00:44]} Qa7 {[%emt 0:00:33]} 28. Rdc1 {[%emt 0:00:35]} R8d7 {[%emt 0:01:21]} 29. Qe3 {[%emt 0:00:42]} h6 {[%emt 0:00:48]} 30. Qe5 {[%emt 0:00:32]} Ng6 {[%emt 0:02:21]} 31. Rc8+ {[%emt 0:01:38]} Kh7 {[%emt 0:01:21]} 32. Qxd6 {[%emt 0:01:54]} Rxd6 {[%emt 0:01:09]} 33. R1c7+ {[%emt 0:00:08]} Rd7 {[%emt 0:00:19]} 34. Rxa7 {[%emt 0:00:04]} Rxa7 {[%emt 0:00:04]} 35. Rc6 {[%emt 0:01:58]} e5 {[%emt 0:01:08]} 36. Bh5 {[%emt 0:01:08]} Ne7 {[%emt 0:00:23]} 37. Rc5 {[%emt 0:00:18]} e4 {[%emt 0:01:00]} 38. d5 {[%emt 0:00:18]} Rd7 {[%emt 0:02:24]} 39. d6 {[%emt 0:00:12]} 1-0

[Event "FRA-chTW Top 12 2019"]
[Site "Vandoeuvre"]
[Date "2019.05.02"]
[Round "1.11"]
[White "Hamelin, Isabelle"]
[Black "Verot, Melanie"]
[Result "1-0"]
[ECO "D34"]
[WhiteElo "1609"]
[BlackElo "2069"]
[Annotator "NA"]
[PlyCount "111"]
[EventDate "2019.05.02"]
[EventType "team-tourn"]
[EventCountry "FRA"]
[SourceTitle "playchess.com"]
[Source "ChessBase"]
[SourceQuality "1"]
[TimeControl "40/5400+30:1800+30"]

1. c4 {[%emt 0:00:00]} e6 {[%emt 0:00:14]} 2. Nc3 {[%emt 0:00:00]} d5 {[%emt 0:00:09]} 3. cxd5 {[%emt 0:00:00]} exd5 {[%emt 0:00:21]} 4. d4 {[%emt 0:00:03]} c5 {[%emt 0:00:42]} 5. Nf3 {[%emt 0:01:25]} Nc6 {[%emt 0:00:18]} 6. g3 {[%emt 0:04:15]} Nf6 {[%emt 0:00:54]} 7. Bg2 {[%emt 0:00:29]} Be7 {[%emt 0:01:07]} 8. O-O {[%emt 0:00:22]} O-O {[%emt 0:00:30]} 9. a3 {[%emt 0:01:21]} c4 {[%emt 0:02:24]} 10. Re1 {[%emt 0:06:52]} h6 {[%emt 0:19:17]} 11. Qc2 {[%emt 0:18:05]} Bg4 {[%emt 0:07:29]} 12. e3 {[%emt 0:02:27]} Qb8 {[%emt 0:14:59]} 13. b4 {[%emt 0:08:45]} b5 {[%emt 0:11:47]} 14. Bb2 {[%emt 0:03:01]} Bxb4 {[%emt 0:08:29]} 15. axb4 {[%emt 0:02:02]} Nxb4 {[%emt 0:00:07]} 16. Qb1 {[%emt 0:03:31]} Nd3 {[%emt 0:00:42]} 17. Rd1 {[%emt 0:02:06]} b4 {[%emt 0:03:36]} 18. Ne2 {[%emt 0:03:39]} Ne4 {[%emt 0:01:14]} 19. Rxd3 {[%emt 0:02:39]} cxd3 {[%emt 0:00:09]} 20. Qxd3 {[%emt 0:00:21]} a5 {[%emt 0:01:55]} 21. Nd2 {[%emt 0:02:08]} Nxd2 {[%emt 0:04:08]} 22. Qxd2 {[%emt 0:00:16]} Qb5 {[%emt 0:01:08]} 23. Nf4 {[%emt 0:00:46]} Rfd8 {[%emt 0:00:52]} 24. Nd3 {[%emt 0:01:22]} Bf5 {[%emt 0:19:29]} 25. Nc5 {[%emt 0:00:14]} Qb6 {[%emt 0:00:00]} 26. Qd1 {[%emt 0:02:54]} Ra7 {[%emt 0:00:00]} 27. Qb3 {[%emt 0:03:01]} Be6 {[%emt 0:00:00]} 28. Ra4 {[%emt 0:06:08]} h5 {[%emt 0:00:00]} 29. h4 {[%emt 0:00:52]} Qd6 {[%emt 0:00:00]} 30. Bc1 {[%emt 0:01:23]} Bd7 {[%emt 0:00:00]} 31. Ra1 {[%emt 0:01:16]} Bb5 {[%emt 0:00:33]} 32. Bf1 {[%emt 0:01:57]} Bxf1 {[%emt 0:00:38]} 33. Kxf1 {[%emt 0:00:06]} Qf6 {[%emt 0:00:47]} 34. Kg2 {[%emt 0:00:13]} Qf5 {[%emt 0:00:34]} 35. Bd2 {[%emt 0:00:39]} Rda8 {[%emt 0:00:51]} 36. Qa4 {[%emt 0:00:24]} Qg4 {[%emt 0:01:06]} 37. f3 {[%emt 0:00:23]} Qf5 {[%emt 0:00:33]} 38. Qb3 {[%emt 0:06:02]} Rb8 {[%emt 0:01:00]} 39. Ra4 {[%emt 0:00:55]} Rb6 {[%emt 0:00:21]} 40. Ra1 {[%emt 0:03:58]} g5 {[%emt 0:00:50]} 41. hxg5 {[%emt 0:30:35]} Qxg5 {[%emt 0:30:11]} 42. Rh1 {[%emt 0:00:34]} Rg6 {[%emt 0:00:19]} 43. Rh3 {[%emt 0:00:34]} Re7 {[%emt 0:01:12]} 44. Qd3 {[%emt 0:00:39]} h4 {[%emt 0:00:31]} 45. g4 {[%emt 0:00:19]} f5 {[%emt 0:00:11]} 46. e4 {[%emt 0:00:44]} f4 {[%emt 0:00:32]} 47. e5 {[%emt 0:00:24]} Reg7 {[%emt 0:00:50]} 48. e6 {[%emt 0:01:02]} Qf6 {[%emt 0:00:15]} 49. Nd7 {[%emt 0:02:34]} Qxe6 {[%emt 0:00:20]} 50. Ne5 {[%emt 0:00:12]} Rh6 {[%emt 0:00:52]} 51. Bxf4 {[%emt 0:00:14]} Rhh7 {[%emt 0:00:01]} 52. Qb5 {[%emt 0:01:12]} Rc7 {[%emt 0:00:14]} 53. Qb8+ {[%emt 0:00:32]} Rc8 {[%emt 0:00:04]} 54. Qb5 {[%emt 0:01:46]} Rc2+ {[%emt 0:00:05]} 55. Kf1 {[%emt 0:00:17]} Rc3 {[%emt 0:02:09]} 56. Qxa5 {[%emt 0:01:57]} 1-0

[Event "FRA-chTW Top 12 2019"]
[Site "Vandoeuvre"]
[Date "2019.05.02"]
[Round "1.12"]
[White "Bonvalot, Isabelle"]
[Black "Saliou, Sarah"]
[Result "0-1"]
[ECO "B22"]
[WhiteElo "1936"]
[BlackElo "1696"]
[Annotator "NA"]
[PlyCount "114"]
[EventDate "2019.05.02"]
[EventType "team-tourn"]
[EventCountry "FRA"]
[SourceTitle "playchess.com"]
[Source "ChessBase"]
[SourceQuality "1"]
[TimeControl "40/5400+30:1800+30"]

1. e4 {[%emt 0:00:00]} c5 {[%emt 0:00:00]} 2. c3 {[%emt 0:00:00]} Nf6 {[%emt 0:00:00]} 3. e5 {[%emt 0:00:00]} Nd5 {[%emt 0:00:00]} 4. d4 {[%emt 0:00:00]} cxd4 {[%emt 0:00:39]} 5. Nf3 {[%emt 0:00:00]} Nc6 {[%emt 0:04:10]} 6. cxd4 {[%emt 0:01:32]} g6 {[%emt 0:10:01]} 7. Bc4 {[%emt 0:02:12]} Nb6 {[%emt 0:01:34]} 8. Bb3 {[%emt 0:01:10]} Bg7 {[%emt 0:00:27]} 9. O-O {[%emt 0:00:40]} O-O {[%emt 0:00:31]} 10. Bf4 {[%emt 0:04:17]} d6 {[%emt 0:14:05]} 11. exd6 {[%emt 0:04:24]} exd6 {[%emt 0:00:06]} 12. h3 {[%emt 0:00:09]} d5 {[%emt 0:09:15]} 13. Nc3 {[%emt 0:02:17]} a6 {[%emt 0:11:38]} 14. Qd2 {[%emt 0:04:21]} Na5 {[%emt 0:09:58]} 15. Bh6 {[%emt 0:05:25]} Nac4 {[%emt 0:01:02]} 16. Qc1 {[%emt 0:01:06]} Be6 {[%emt 0:02:32]} 17. Bxg7 {[%emt 0:01:07]} Kxg7 {[%emt 0:00:06]} 18. Bc2 {[%emt 0:21:19]} Qf6 {[%emt 0:02:09]} 19. b3 {[%emt 0:02:33]} Nd6 {[%emt 0:00:37]} 20. Qd2 {[%emt 0:03:19]} Bxh3 {[%emt 0:08:59]} 21. Ne5 {[%emt 0:06:35]} Bf5 {[%emt 0:00:34]} 22. Rac1 {[%emt 0:01:16]} Bxc2 {[%emt 0:10:38]} 23. Rxc2 {[%emt 0:01:19]} Nf5 {[%emt 0:00:10]} 24. a4 {[%emt 0:00:39]} Qd6 {[%emt 0:02:11]} 25. a5 {[%emt 0:05:48]} Nd7 {[%emt 0:00:14]} 26. Re1 {[%emt 0:02:27]} Rfe8 {[%emt 0:01:37]} 27. Nxd7 {[%emt 0:05:05]} Qxd7 {[%emt 0:00:04]} 28. Na4 {[%emt 0:00:11]} Rxe1+ 29. Qxe1 {[%emt 0:00:02]} Re8 {[%emt 0:02:03]} 30. Qc3 {[%emt 0:00:50]} Qd6 {[%emt 0:02:52]} 31. Nc5 {[%emt 0:01:25]} b6 {[%emt 0:00:51]} 32. axb6 {[%emt 0:01:55]} Qxb6 {[%emt 0:00:05]} 33. g4 {[%emt 0:01:41]} Nd6 {[%emt 0:01:40]} 34. f3 {[%emt 0:02:48]} Nb5 {[%emt 0:00:11]} 35. Qd2 {[%emt 0:00:15]} Qf6 {[%emt 0:00:55]} 36. Qd3 {[%emt 0:13:27]} Qxd4+ {[%emt 0:02:18]} 37. Qxd4+ {[%emt 0:03:40]} Nxd4 {[%emt 0:00:04]} 38. Rf2 {[%emt 0:00:25]} Re3 {[%emt 0:00:35]} 39. Nxa6 {[%emt 0:01:22]} Nxf3+ {[%emt 0:00:41]} 40. Kf1 {[%emt 0:00:32]} Rxb3 {[%emt 0:00:15]} 41. Nc7 {[%emt 0:30:21]} d4 {[%emt 0:31:00]} 42. Ne8+ {[%emt 0:00:51]} Kf8 {[%emt 0:00:18]} 43. Nd6 {[%emt 0:00:08]} Re3 {[%emt 0:02:23]} 44. Nc4 {[%emt 0:00:38]} Rc3 {[%emt 0:00:10]} 45. Nd6 {[%emt 0:00:10]} Ne5 {[%emt 0:01:12]} 46. Rf4 {[%emt 0:00:50]} d3 {[%emt 0:00:21]} 47. Rd4 {[%emt 0:00:50]} Rc2 {[%emt 0:01:28]} 48. g5 {[%emt 0:01:02]} Nf3 {[%emt 0:00:42]} 49. Rd5 {[%emt 0:01:09]} Rc1+ {[%emt 0:00:23]} 50. Kf2 {[%emt 0:01:28]} d2 {[%emt 0:00:05]} 51. Kxf3 {[%emt 0:00:00]} d1=Q+ {[%emt 0:00:06]} 52. Rxd1 {[%emt 0:00:00]} Rxd1 {[%emt 0:00:04]} 53. Ne4 {[%emt 0:00:00]} Kg7 {[%emt 0:00:19]} 54. Nf2 {[%emt 0:00:10]} Rd4 {[%emt 0:00:08]} 55. Ng4 {[%emt 0:00:11]} Rd6 {[%emt 0:00:33]} 56. Kg3 {[%emt 0:00:11]} f6 {[%emt 0:00:11]} 57. gxf6+ {[%emt 0:00:10]} Rxf6 {[%emt 0:00:05]} 0-1

[Event "FRA-chTW Top 12 2019"]
[Site "Vandoeuvre"]
[Date "2019.05.02"]
[Round "1.12"]
[White "Gras, Delphine"]
[Black "Gromas, Hermine"]
[Result "0-1"]
[ECO "B18"]
[WhiteElo "1835"]
[BlackElo "1476"]
[Annotator "NA"]
[PlyCount "69"]
[EventDate "2019.05.02"]
[EventType "team-tourn"]
[EventCountry "FRA"]
[SourceTitle "playchess.com"]
[Source "ChessBase"]
[SourceQuality "1"]
[TimeControl "40/5400+30:1800+30"]

1. e4 {[%emt 0:00:00]} c6 {[%emt 0:00:00]} 2. d4 {[%emt 0:00:00]} d5 {[%emt 0:00:00]} 3. Nc3 {[%emt 0:00:00]} dxe4 {[%emt 0:00:00]} 4. Nxe4 {[%emt 0:00:00]} Bf5 {[%emt 0:00:00]} 5. Ng3 {[%emt 0:00:00]} Bg6 {[%emt 0:00:13]} 6. Nf3 {[%emt 0:00:05]} Nf6 {[%emt 0:01:27]} 7. Ne5 {[%emt 0:02:03]} Nbd7 {[%emt 0:03:08]} 8. Nxg6 {[%emt 0:01:02]} hxg6 {[%emt 0:00:07]} 9. Bc4 {[%emt 0:03:17]} e6 {[%emt 0:02:05]} 10. c3 {[%emt 0:04:32]} Bd6 {[%emt 0:03:19]} 11. Qf3 {[%emt 0:01:01]} Qc7 {[%emt 0:06:29]} 12. Ne2 {[%emt 0:09:20]} Nb6 {[%emt 0:06:14]} 13. Bb3 {[%emt 0:00:28]} O-O-O {[%emt 0:34:16]} 14. Bg5 {[%emt 0:03:14]} Nbd7 {[%emt 0:02:12]} 15. O-O-O {[%emt 0:02:32]} Rde8 {[%emt 0:10:39]} 16. c4 {[%emt 0:11:47]} Rhf8 {[%emt 0:04:10]} 17. c5 {[%emt 0:06:22]} Be7 {[%emt 0:02:05]} 18. Bf4 {[%emt 0:01:31]} Qa5 {[%emt 0:02:18]} 19. Nc3 {[%emt 0:11:32]} Nd5 {[%emt 0:03:04]} 20. Bd2 {[%emt 0:06:53]} Qc7 {[%emt 0:03:54]} 21. Ne4 {[%emt 0:05:01]} N7f6 {[%emt 0:14:50]} 22. Ng5 Qd8 23. Rhe1 Qd7 24. Bc2 Bd8 {[%emt 0:00:00]} 25. Qa3 Kb8 {[%emt 0:00:00]} 26. Re2 Bc7 {[%emt 0:00:00]} 27. Rde1 Nf4 {[%emt 0:00:00]} 28. Nxf7 Nxe2+ {[%emt 0:00:00]} 29. Rxe2 Qxf7 {[%emt 0:00:00]} 30. g3 Nd5 {[%emt 0:00:00]} 31. Ba4 e5 {[%emt 0:00:00]} 32. Qb3 Kc8 {[%emt 0:00:00]} 33. dxe5 Rxe5 {[%emt 0:00:00]} 34. Be3 Nxe3 {[%emt 0:00:00]} 35. fxe3 0-1